bitfinex/quotes_ETHUSD_20260209
["timestamp","ask_amount","ask_price","bid_price","bid_amount"]
[1770601803026,8.19784636,2058.1,2056.7,3.396]
[1770601803224,0.04845196,2057.6,2056.7,3.396]
[1770601803428,2.3,2057.4,2056.7,3.396]
[1770601803953,2.3,2057.4,2056.9,3.32107043]
[1770601804153,0.002,2058.3,2057.2,3.32107043]
[1770601804463,0.002,2058.3,2057.4,5.32107043]
[1770601804746,0.002,2058.3,2057.6,3.32107043]
[1770601804918,0.002,2058.3,2057.8,3.32107043]
[1770601805118,0.002,2058.5,2058.0,3.32107043]
[1770601805317,0.002,2059.4,2058.4,3.32107043]
[1770601805535,0.004,2059.4,2058.5,3.396]
[1770601805738,0.002,2059.4,2058.6,5.32107043]
[1770601806042,0.002,2059.4,2058.8,4.53537002]
[1770601806227,0.002,2059.4,2058.8,1.21429959]
[1770601806934,1.21312111,2060.8,2059.0,5.32107043]
[1770601807138,1.21312111,2060.8,2059.1,3.32107043]
[1770601807139,0.04845196,2060.6,2059.1,3.32107043]
[1770601807336,0.04845196,2060.6,2059.3,3.32107043]
[1770601807536,0.05045196,2060.5,2059.0,3.32107043]
[1770601807844,0.002,2060.4,2059.2,1.21406371]
[1770601808173,0.04845196,2060.3,2059.2,1.21406371]
[1770601808322,0.04845196,2059.9,2058.7,4.85736244]
[1770601808648,0.04845196,2059.9,2059.1,1.21411217]
[1770601809519,0.04845196,2059.6,2058.8,1.21429834]
[1770601809768,0.04845196,2059.6,2058.9,3.395]
[1770601809931,0.002,2059.5,2059.0,1.21418164]
[1770601810272,0.04845196,2059.9,2059.0,1.21418164]
[1770601810417,0.04845196,2059.9,2058.9,8.25172656]
[1770601810418,0.04845196,2059.6,2058.9,3.395]
[1770601810620,0.04845196,2059.6,2058.9,4.60923614]
[1770601810817,0.04845196,2059.6,2058.9,3.393]
[1770601810818,0.04845196,2059.3,2058.9,3.393]
[1770601811431,0.04845196,2059.6,2058.9,3.393]
[1770601811752,0.04845196,2059.8,2058.9,4.60723712]
[1770601812071,1.26198528,2060.2,2058.9,4.60723278]
[1770601812238,0.04845196,2059.7,2058.9,3.393]
[1770601812551,0.04845196,2059.7,2058.9,4.60723655]
[1770601812850,0.04845196,2059.4,2058.7,3.394]
[1770601813054,0.04845196,2059.1,2058.7,3.394]
[1770601813458,0.04845196,2059.4,2058.7,3.394]
[1770601813976,3.38721183,2059.7,2058.7,4.608354]
[1770601814256,4.85549363,2059.6,2058.7,4.608354]
[1770601814455,1.21382792,2059.6,2058.7,4.608354]
[1770601814654,0.04845196,2059.6,2058.7,4.608354]
[1770601815927,1.26231181,2059.6,2058.7,4.608354]
[1770601816867,0.04845196,2059.3,2058.7,3.394]
[1770601817227,0.04845196,2059.0,2058.7,3.394]
[1770601817566,0.002,2059.5,2058.7,3.394]
[1770601817870,0.002,2059.5,2058.7,4.60835386]
[1770601818073,0.002,2059.5,2058.5,0.001]
[1770601818074,0.04845196,2058.7,2058.5,0.001]
[1770601818234,0.04845196,2058.7,2057.6,3.394]
[1770601818553,0.04845196,2058.4,2057.6,3.394]
[1770601818726,0.04845196,2058.1,2057.6,3.394]
[1770601820137,1.21441756,2058.6,2057.6,3.394]
[1770601820447,0.04845196,2058.1,2057.6,3.394]
[1770601820842,0.04845196,2058.0,2057.6,3.394]
[1770601821046,0.04845196,2058.4,2057.6,3.394]
[1770601821259,0.04845196,2057.8,2057.4,0.001]
[1770601821571,3.35301663,2058.3,2057.4,0.001]
[1770601821572,3.40146859,2058.2,2057.4,0.001]
[1770601821728,0.04845196,2057.8,2057.4,0.001]
[1770601821925,0.04845196,2057.5,2056.7,3.394]
[1770601822134,1.21512588,2057.4,2056.7,3.394]
[1770601822548,1.26356434,2057.5,2056.7,4.60952851]
[1770601822828,0.04845196,2057.4,2056.7,3.394]
[1770601823030,0.04845196,2057.4,2056.7,4.60953884]
[1770601823346,1.26356434,2057.5,2056.7,3.394]
[1770601823550,0.04845196,2057.1,2056.7,3.394]
[1770601824131,1.21536217,2057.0,2056.2,1.21578357]
[1770601824327,1.21536217,2057.0,2056.3,1.21577465]
[1770601824531,1.21536217,2057.0,2056.1,3.395]
[1770601824863,1.21536217,2057.0,2056.3,1.21577544]
[1770601825156,4.90989184,2057.1,2056.1,8.25857438]
[1770601825157,1.21533522,2057.1,2056.4,1.2156744]
[1770601825336,1.21494872,2057.7,2056.7,1.21552981]
[1770601825540,0.04845196,2057.6,2056.6,1.21556821]
[1770601825735,1.21494872,2057.7,2056.7,1.21553664]
[1770601825936,1.21471259,2058.1,2056.7,1.21553664]
[1770601826135,1.2633011,2057.9,2056.6,4.86215782]
[1770601826434,1.2633011,2057.9,2056.5,8.356466]
[1770601826749,0.04845196,2057.3,2056.4,1.21567837]
[1770601826949,0.04845196,2057.2,2056.4,1.21570792]
[1770601827273,0.04845196,2057.1,2056.1,3.395]
[1770601827466,0.04845196,2057.1,2056.3,1.21574671]
[1770601828278,0.04845196,2057.6,2056.2,4.86286714]
[1770601828645,0.04845196,2057.3,2056.2,4.86286714]
[1770601829668,0.04845196,2057.2,2056.1,4.61084926]
[1770601830053,0.04845196,2057.2,2056.5,0.001]
[1770601830257,1.21530309,2057.1,2056.5,0.001]
[1770601830462,0.04845196,2056.9,2056.5,0.001]
[1770601830766,0.04845196,2056.8,2056.3,0.001]
[1770601831068,0.04845196,2056.5,2056.3,0.001]
[1770601831270,0.04845196,2056.8,2056.3,0.001]
[1770601832364,1.21525935,2057.2,2056.3,0.001]
[1770601832854,0.04845196,2057.5,2056.3,0.001]
[1770601833360,0.04845196,2057.3,2056.3,0.001]
[1770601833940,0.04845196,2057.0,2056.3,0.001]
[1770601834482,0.04845196,2057.3,2056.3,0.001]
[1770601835174,0.04845196,2057.2,2056.3,0.001]
[1770601835580,1.26345973,2057.6,2056.3,0.001]
[1770601835777,0.04845196,2057.3,2056.3,0.001]
[1770601836283,0.04845196,2057.0,2056.3,0.001]
[1770601836952,0.04845196,2056.9,2055.6,4.86773757]
[1770601837671,0.04845196,2056.8,2055.6,4.86773757]
[1770601837869,1.21524402,2057.2,2055.6,8.36204575]
[1770601838050,0.04845196,2056.9,2055.6,8.36204575]
[1770601838251,1.21548035,2056.8,2055.6,8.36204575]
[1770601838469,1.21548035,2056.8,2055.6,4.86773757]
[1770601839464,1.26386118,2057.0,2055.6,4.86773757]
[1770601839645,1.21540922,2057.0,2055.7,3.49430818]
[1770601839849,1.26386118,2057.0,2055.6,4.86773757]
[1770601840250,0.04845196,2057.0,2055.6,4.86773757]
[1770601840550,0.04845196,2056.9,2055.6,8.36204575]
[1770601840746,4.86097707,2057.2,2055.6,8.36204575]
[1770601840979,0.04845196,2056.9,2055.6,8.36204575]
[1770601841356,4.86097707,2057.2,2055.6,8.36204575]
[1770601841558,0.04845196,2057.0,2055.6,8.36204575]
[1770601842048,0.04845196,2057.3,2055.9,2.0]
[1770601842252,0.04845196,2057.2,2056.1,1.21589416]
[1770601842483,1.21506682,2057.5,2056.1,1.21589416]
[1770601842787,0.04845196,2057.2,2056.1,1.21589416]
[1770601842982,0.04845196,2057.1,2056.2,3.397]
[1770601843861,0.002,2057.0,2056.2,3.397]
[1770601844381,0.002,2057.0,2056.3,1.2157759]
[1770601844782,1.21471259,2058.1,2056.9,0.04845196]
[1770601844956,23.67740522,2063.0,2060.7,4.08699282]
[1770601845158,27.06189168,2063.6,2060.6,0.25323324]
[1770601845159,2.46156087,2067.0,2065.5,2.7649318]
[1770601845461,29.57814302,2072.0,2070.0,3.17177437]
[1770601845782,3.397,2072.3,2070.7,48.3790128]
[1770601846085,23.612034,2073.9,2072.0,7.28521498]
[1770601846267,2.97986934,2073.8,2073.6,10.12894069]
[1770601846481,2.97986934,2073.8,2070.7,45.11178095]
[1770601846661,2.52758791,2074.6,2071.9,2.0]
[1770601846860,0.04845196,2074.2,2072.0,1.44199134]
[1770601847054,0.04845196,2074.3,2073.2,22.60171857]
[1770601847254,0.04845196,2075.8,2073.3,2.40511344]
[1770601847255,0.04845196,2074.2,2073.3,2.40511344]
[1770601847487,0.04845196,2075.4,2074.5,0.04845195]
[1770601847488,10.76465962,2074.6,2074.5,0.04845195]
[1770601847779,10.76465962,2074.6,2071.4,2.45570705]
[1770601847780,0.04845196,2072.9,2071.4,2.45570705]
[1770601847952,0.04845196,2073.5,2072.6,29.67098388]
[1770601848153,0.69782695,2073.4,2073.3,22.73918449]
[1770601848398,14.85648657,2073.4,2072.6,55.60568522]
[1770601848685,3.63044004,2073.5,2072.6,39.18760477]
[1770601848848,3.392,2073.4,2072.6,39.18760477]
[1770601849055,3.392,2073.4,2072.6,38.7048325]
[1770601849485,8.06532847,2073.3,2072.6,38.22206023]
[1770601849670,7.81223658,2073.3,2072.6,38.22206023]
[1770601849989,7.76223658,2073.3,2072.6,53.73928796]
[1770601850193,7.24233658,2073.3,2072.7,16.04341639]
[1770601850486,3.39,2074.7,2073.2,22.27295569]
[1770601850650,3.39,2074.7,2074.2,19.08518479]
[1770601850856,4.59501158,2074.7,2074.2,13.77468981]
[1770601851107,0.04341639,2073.4,2072.6,15.44665189]
[1770601851305,0.04341639,2071.5,2070.2,8.67978452]
[1770601851467,3.17491805,2070.8,2070.3,31.44665189]
[1770601851655,3.17491805,2070.8,2070.2,8.67978452]
[1770601851656,0.04341639,2070.4,2070.2,8.67978452]
[1770601851854,0.04341639,2070.0,2068.9,9.85336448]
[1770601852082,0.04341639,2069.9,2068.9,9.85336448]
[1770601852387,1.25121575,2069.9,2069.0,22.28414404]
[1770601852587,0.04341639,2070.0,2068.9,22.28414404]
[1770601852883,1.20749613,2070.4,2069.9,15.76714368]
[1770601852884,0.04341639,2070.2,2069.9,15.76714368]
[1770601853059,0.04341639,2069.3,2068.4,44.36106096]
[1770601853262,0.04341639,2069.9,2068.4,44.36106096]
[1770601853580,0.04341639,2071.7,2069.3,0.04341639]
[1770601853786,1.20662194,2071.9,2071.1,12.57670404]
[1770601853787,0.04341639,2071.8,2071.1,12.57670404]
[1770601853957,1.20662194,2071.9,2071.1,12.09398071]
[1770601854159,0.04586049,2070.4,2068.4,31.97614189]
[1770601854453,0.04586049,2070.7,2068.5,22.28414404]
[1770601854454,0.04586049,2070.3,2068.5,22.28414404]
[1770601854676,0.04586049,2070.3,2068.6,8.86358]
[1770601854980,0.04586049,2070.0,2068.5,22.28414404]
[1770601855182,0.04586049,2070.3,2068.6,10.164231]
[1770601855386,4.87561175,2070.6,2068.8,21.385359]
[1770601855562,0.04586049,2070.6,2068.8,31.05880562]
[1770601855764,1.2073795,2070.7,2069.1,12.013803]
[1770601855969,1.20720459,2070.9,2069.3,15.836416]
[1770601856170,4.82721775,2071.7,2069.6,0.04586049]
[1770601856371,1.20662194,2071.9,2071.4,10.14978347]
[1770601856561,1.20621441,2072.6,2071.4,9.42455248]
[1770601856774,0.04586049,2072.4,2072.3,3.40783433]
[1770601856980,0.04586049,2072.4,2070.9,15.61175538]
[1770601856981,0.04586049,2071.5,2070.9,15.61175538]
[1770601857189,0.04586049,2071.4,2069.9,18.73770695]
[1770601857486,0.04586049,2071.8,2069.8,22.28414404]
[1770601857487,0.04586049,2071.0,2069.8,22.28414404]
[1770601857689,0.04586049,2071.4,2069.8,22.28414404]
[1770601858054,0.04586049,2071.3,2069.8,22.28414404]
[1770601858295,0.14826049,2071.8,2069.8,22.28414404]
[1770601858296,0.04586049,2071.1,2069.8,22.28414404]
[1770601858591,1.2071463,2071.0,2069.9,0.93495303]
[1770601858762,4.82755459,2071.5,2070.0,0.93495303]
[1770601858963,1.20679667,2071.6,2071.4,4.58158559]
[1770601859159,1.20679667,2071.6,2070.1,12.46349205]
[1770601859383,1.49439932,2071.8,2070.2,22.28414404]
[1770601859580,1.49439932,2071.8,2071.6,3.89250172]
[1770601859581,1.20673842,2071.7,2071.6,3.89250172]
[1770601859862,1.20673842,2071.7,2070.2,22.28414404]
[1770601860291,1.20673842,2071.7,2070.4,12.17696414]
[1770601860468,0.04586049,2071.4,2070.2,22.28414404]
[1770601860668,0.04586049,2071.6,2070.2,22.28414404]
[1770601860879,0.04586049,2071.0,2070.2,22.28414404]
[1770601861076,0.04586049,2070.8,2068.8,18.67663004]
[1770601861475,0.04586049,2070.5,2068.8,18.67663004]
[1770601861769,0.04586049,2069.9,2068.5,15.58211149]
[1770601862166,0.04586049,2069.9,2067.9,6.49284596]
[1770601862366,1.20749613,2070.4,2068.6,11.655799]
[1770601862588,1.20732119,2070.7,2069.1,0.04586049]
[1770601862789,0.04586049,2071.3,2069.1,0.04586049]
[1770601862790,0.04586049,2071.3,2069.5,0.2335703]
[1770601863096,0.04586049,2070.9,2069.6,10.14967515]
[1770601863794,0.04586049,2071.2,2069.6,10.14967515]
[1770601863969,0.04586049,2070.5,2069.7,7.82083626]
[1770601864164,0.04586049,2070.8,2069.7,7.82083626]
[1770601864482,0.1024,2071.0,2069.7,7.82083626]
[1770601864681,0.04586049,2070.8,2069.5,7.82083626]
[1770601865279,4.87421257,2071.2,2069.5,7.82083626]
[1770601865481,1.20708802,2071.1,2069.7,7.82083626]
[1770601866085,0.04586049,2070.8,2069.7,7.82083626]
[1770601866374,1.20708802,2071.1,2069.7,7.82083626]
[1770601866578,0.04586049,2070.8,2069.7,7.82083626]
[1770601866906,0.04586049,2070.4,2069.7,7.82083626]
[1770601867083,0.04586049,2070.3,2069.6,5.53022483]
[1770601867279,0.04586049,2070.3,2069.3,10.14967515]
[1770601868100,0.04586049,2070.7,2068.9,5.97169692]
[1770601868311,0.1024,2071.0,2069.1,7.036401]
[1770601868312,0.14589999,2070.6,2069.1,7.036401]
[1770601868604,0.04586049,2070.3,2068.8,10.14967515]
[1770601868778,0.04586049,2070.0,2068.8,10.14967515]
[1770601868981,0.04586049,2069.9,2069.7,0.001]
[1770601869175,0.04586049,2069.9,2068.6,10.14967515]
[1770601869500,0.04586049,2070.3,2069.5,0.001]
[1770601869675,0.04586049,2070.0,2069.5,0.001]
[1770601869875,0.04586049,2070.0,2068.6,10.14967515]
[1770601870092,0.04586049,2070.0,2068.6,10.15067515]
[1770601870293,0.04586049,2070.0,2069.0,10.14967515]
[1770601870604,1.20761279,2070.2,2069.0,10.14967515]
[1770601870793,0.04586049,2070.0,2069.0,10.14967515]
[1770601871178,4.87631165,2070.3,2069.1,0.96992297]
[1770601871502,0.04586049,2070.2,2069.4,10.14967515]
[1770601871701,0.04586049,2069.6,2069.5,0.42617216]
[1770601871880,0.04586049,2069.8,2068.9,2.0]
[1770601872220,4.93285116,2070.3,2068.9,2.0]
[1770601872391,4.83045116,2070.3,2068.9,2.0]
[1770601872916,4.23531417,2070.4,2069.0,0.2335703]
[1770601873225,4.23528589,2070.4,2068.9,2.0]
[1770601873521,0.14589999,2070.6,2069.4,0.27943079]
[1770601873693,1.49395628,2071.7,2069.4,0.27943079]
[1770601873694,1.20662194,2071.9,2070.0,0.2335703]
[1770601873896,1.20662194,2071.9,2070.2,0.2335703]
[1770601874116,1.20662194,2071.9,2070.7,12.59538901]
[1770601874393,1.20659473,2072.0,2071.4,15.58211149]
[1770601874598,1.25245522,2072.0,2071.4,15.09865303]
[1770601875197,1.20659473,2072.0,2071.4,15.09865303]
[1770601876024,0.04586049,2072.4,2071.4,15.09865303]
[1770601876314,0.04586049,2072.4,2072.2,13.68178426]
[1770601876649,4.31518785,2073.1,2072.2,13.68178426]
[1770601876650,4.82420128,2072.9,2072.2,13.68178426]
[1770601876796,0.04586049,2072.8,2072.2,13.1983258]
[1770601877001,1.20598166,2073.0,2072.2,4.59527694]
[1770601877190,1.20598166,2073.0,2072.7,5.9827322]
[1770601877392,4.92632667,2073.3,2072.7,5.49951203]
[1770601877588,0.04586049,2074.0,2072.2,7.97127694]
[1770601877888,0.04586049,2073.7,2072.6,11.11839271]
[1770601878093,0.04586049,2073.4,2072.2,4.59527694]
[1770601878317,0.14826049,2073.7,2072.2,4.59527694]
[1770601878622,1.30803271,2073.6,2073.5,1e-08]
[1770601878822,0.1024,2073.5,2071.5,0.2335703]
[1770601879122,0.1024,2073.5,2071.8,0.2335703]
[1770601879726,0.1024,2073.5,2071.8,0.27943079]
[1770601880286,0.1024,2073.5,2071.8,0.2335703]
[1770601880497,0.04586049,2072.8,2071.5,2.42960324]
[1770601880700,0.04586049,2072.8,2070.9,3.375]
[1770601880701,0.04586049,2072.5,2070.9,3.375]
[1770601880904,0.1024,2072.9,2071.2,2.47370574]
[1770601881199,0.14826049,2072.9,2071.1,2.4975018]
[1770601881430,0.1024,2072.9,2071.3,0.04586049]
[1770601881695,0.1024,2072.9,2071.4,0.04586049]
[1770601881854,1.20551644,2073.9,2072.0,0.04586049]
[1770601882126,1.25114445,2074.3,2071.8,3.4218866]
[1770601882304,0.04586049,2074.0,2072.2,0.04586049]
[1770601882502,4.82290343,2074.4,2072.5,0.04586049]
[1770601882704,0.04586049,2074.0,2072.2,15.51080619]
[1770601882920,0.14826049,2074.3,2072.3,0.04586049]
[1770601883151,0.002,2072.9,2072.3,2.44701074]
[1770601883304,0.04586049,2073.9,2072.2,12.13680619]
[1770601883502,0.04586049,2073.9,2072.2,14.59177835]
[1770601883702,0.04586049,2073.0,2071.4,2.45570705]
[1770601883903,0.04586049,2072.9,2071.3,12.13680619]
[1770601884632,1.20609803,2072.8,2071.3,12.13680619]
[1770601884835,1.25195852,2072.8,2071.3,12.13680619]
[1770601885357,1.20796176,2073.1,2071.5,12.13680619]
[1770601885554,0.002,2073.1,2071.9,0.2335703]
[1770601885727,0.002,2073.1,2071.8,12.13680619]
[1770601886129,0.002,2073.1,2072.3,0.04586049]
[1770601886455,0.002,2073.1,2072.3,12.18266668]
[1770601886839,0.002,2073.1,2072.3,12.13680619]
[1770601887044,0.04586049,2073.0,2070.8,12.13680619]
[1770601887220,0.14826049,2073.0,2070.9,0.04586049]
[1770601887420,0.14826049,2073.0,2070.9,12.18266668]
[1770601888032,0.14826049,2073.0,2070.9,12.13680619]
[1770601888033,0.04586049,2072.7,2070.9,12.13680619]
[1770601888560,0.1024,2073.0,2071.3,0.04586049]
[1770601888734,0.002,2073.1,2071.0,0.04586049]
[1770601888735,0.002,2073.1,2071.4,15.55566668]
[1770601888936,0.002,2073.1,2071.5,3.373]
[1770601889170,0.002,2073.1,2071.6,12.13680619]
[1770601889682,0.04586049,2073.0,2071.0,12.41623698]
[1770601889968,0.04586049,2072.7,2071.0,12.13680619]
[1770601890170,0.002,2073.1,2071.5,12.13680619]
[1770601890343,0.04586049,2073.0,2071.5,12.13680619]
[1770601890759,0.1044,2073.1,2071.5,12.13680619]
[1770601891364,0.1044,2073.1,2071.6,12.18266668]
[1770601891872,0.002,2073.1,2071.6,12.13680619]
[1770601893461,0.04481262,2072.9,2071.2,3.373]
[1770601893867,0.04481262,2072.9,2071.2,15.50980619]
[1770601894575,0.04586049,2072.6,2070.6,12.13680619]
[1770601894776,1.20638903,2072.3,2070.6,12.13680619]
[1770601894962,0.1024,2072.2,2070.8,12.13680619]
[1770601895375,0.1024,2072.2,2070.2,15.50980619]
[1770601895557,0.04586049,2072.0,2071.8,0.001]
[1770601895755,0.04586049,2072.0,2070.2,15.50980619]
[1770601896057,0.04486652,2072.0,2070.2,15.50980619]
[1770601896381,0.04381865,2072.0,2071.5,0.001]
[1770601896687,0.04381865,2072.0,2070.7,0.001]
[1770601896841,0.1024,2072.0,2070.7,0.001]
[1770601897170,0.14826049,2072.0,2070.7,0.001]
[1770601897371,0.04586049,2071.7,2070.7,0.001]
[1770601897778,0.04586049,2070.1,2068.6,0.001]
[1770601897977,0.04084812,2069.7,2068.6,0.001]
[1770601898177,0.04586049,2069.3,2068.6,0.002]
[1770601898478,3.373,2069.4,2068.7,0.002]
[1770601898677,0.04586049,2069.2,2068.4,0.002]
[1770601898880,10.78380049,2070.6,2068.4,0.002]
[1770601899084,0.04586049,2071.2,2068.9,12.13680619]
[1770601899385,3.41886049,2071.4,2069.3,12.13680619]
[1770601899548,0.04586049,2070.8,2069.3,12.13680619]
[1770601900102,0.04586049,2071.0,2069.4,12.13880619]
[1770601900392,0.04586049,2070.6,2069.8,12.13680619]
[1770601900745,0.04586049,2071.4,2069.6,12.13680619]
[1770601900946,0.04586049,2070.8,2069.6,12.13680619]
[1770601901152,0.04586049,2071.1,2069.8,12.13680619]
[1770601901582,0.04586049,2071.1,2069.9,0.002]
[1770601901791,0.04586049,2070.5,2069.9,0.002]
[1770601902091,0.04586049,2070.8,2069.9,0.002]
[1770601902248,0.04586049,2071.1,2069.9,0.002]
[1770601902449,0.04586049,2070.4,2069.9,0.002]
[1770601902745,0.04586049,2070.1,2069.2,12.13680619]
[1770601903069,1.25338794,2070.4,2069.2,12.13680619]
[1770601903263,0.04586049,2070.1,2069.3,0.002]
[1770601903575,0.04586049,2069.8,2068.9,0.002]
[1770601903789,0.04586049,2070.1,2068.7,12.13880619]
[1770601903975,0.04586049,2069.8,2068.7,12.13680619]
[1770601904206,0.04586049,2070.1,2068.8,0.002]
[1770601904356,0.04586049,2069.8,2068.8,0.002]
[1770601904696,0.04586049,2070.7,2069.1,12.13680619]
[1770601904985,1.2073795,2070.6,2069.1,12.13680619]
[1770601905196,1.20729844,2070.8,2069.3,12.69053194]
[1770601905552,1.20729844,2070.8,2069.4,12.69253194]
[1770601905801,1.20723684,2070.9,2069.4,12.69053194]
[1770601906088,0.04586049,2071.0,2069.5,0.002]
[1770601906089,0.04586049,2070.8,2069.5,0.002]
[1770601906257,0.04586049,2070.8,2069.5,12.69253194]
[1770601906656,0.04586049,2070.2,2069.5,0.002]
[1770601906873,0.04586049,2070.5,2069.5,0.002]
[1770601907068,1.25334056,2070.5,2069.5,0.002]
[1770601907269,0.04586049,2070.2,2069.5,0.002]
[1770601907450,0.04586049,2069.9,2068.9,12.69053194]
[1770601907652,1.20696786,2073.1,2069.9,12.78225292]
[1770601907885,0.00100604,2073.1,2072.9,6.136341]
[1770601908054,0.002,2073.5,2073.1,1.965757]
[1770601908254,1.20770259,2073.5,2072.8,1.90538661]
[1770601908567,1.20770259,2073.5,2072.7,1.90538661]
[1770601908751,0.14826049,2073.4,2072.7,1.90538661]
[1770601908952,0.04586049,2073.1,2072.7,1.90538661]
[1770601909154,0.1024,2073.2,2072.7,1.90538661]
[1770601909458,0.1024,2073.2,2072.8,1.90538661]
[1770601909654,0.1024,2073.2,2072.8,1.42178787]
[1770601909884,1.20580716,2073.3,2070.9,12.69053194]
[1770601909885,0.04586049,2072.5,2070.9,12.69053194]
[1770601910048,3.375,2072.4,2071.1,0.002]
[1770601910383,0.04586049,2072.1,2071.1,0.002]
[1770601910593,0.04586049,2072.0,2071.1,0.002]
[1770601911108,1.20662194,2071.9,2071.1,0.002]
[1770601911388,0.04586049,2071.3,2069.9,3.375]
[1770601912071,3.374,2071.5,2070.0,0.002]
[1770601912257,0.04586049,2071.3,2070.0,12.69253194]
[1770601912453,3.374,2071.5,2070.0,12.69253194]
[1770601912856,1.20702974,2071.2,2070.0,0.002]
[1770601913086,0.1024,2071.4,2070.0,12.69253194]
[1770601914208,4.5808551,2071.5,2070.0,12.69253194]
[1770601914364,3.374,2071.5,2070.0,12.69253194]
[1770601914560,4.58085664,2071.5,2070.0,12.69253194]
[1770601914957,3.374,2071.5,2070.0,12.69253194]
[1770601915159,0.04586049,2071.2,2070.0,0.002]
[1770601915381,0.04586049,2071.1,2070.1,0.002]
[1770601915584,0.04586049,2071.1,2069.7,0.001]
[1770601915585,0.04586049,2071.1,2069.8,0.002]
[1770601915782,3.374,2071.3,2069.8,0.002]
[1770601915967,0.04586049,2071.2,2069.8,0.002]
[1770601916889,1.20708802,2071.1,2069.8,0.002]
[1770601917586,3.374,2071.3,2069.8,0.002]
[1770601917772,4.58100699,2071.3,2069.8,12.69253194]
[1770601918575,1.20696107,2071.4,2069.8,12.69253194]
[1770601920375,0.04586049,2071.2,2069.8,12.69253194]
[1770601920688,1.20696107,2071.4,2069.8,12.69253194]
[1770601920863,4.92924605,2071.8,2070.0,12.69053194]
[1770601921064,0.1024,2071.8,2070.2,12.69053194]
[1770601921260,0.04586049,2071.6,2070.6,12.69053194]
[1770601921759,0.04586049,2071.9,2070.7,0.002]
[1770601921971,1.25248539,2071.9,2070.7,0.002]
[1770601922379,0.1024,2072.0,2070.7,0.002]
[1770601922583,0.1024,2072.0,2070.7,12.69253194]
[1770601923261,1.20650547,2072.1,2070.7,12.69253194]
[1770601923793,1.20650547,2072.1,2070.0,5.11134452]
[1770601923794,0.04586049,2071.3,2070.2,12.69053194]
[1770601923994,4.82765181,2071.5,2070.2,12.69053194]
[1770601924160,4.82765181,2071.5,2070.3,0.002]
[1770601924561,0.04586049,2071.3,2070.3,0.002]
[1770601925686,3.4764,2071.4,2070.3,0.002]
[1770601925879,8.20165181,2071.5,2070.3,0.002]
[1770601926466,8.20165181,2071.5,2070.1,12.69053194]
[1770601926666,8.20165181,2071.5,2070.2,0.002]
[1770601927072,8.20165181,2071.5,2070.1,12.69053194]
[1770601927273,0.04586049,2071.3,2070.2,0.002]
[1770601928286,1.20702974,2071.2,2070.2,0.002]
[1770601930669,4.58087336,2071.5,2070.2,12.69253194]
[1770601930870,3.374,2071.5,2070.2,12.69253194]
[1770601931078,4.58085956,2071.5,2070.2,12.69253194]
[1770601931306,3.374,2071.5,2070.2,12.69253194]
[1770601931868,1.20650547,2072.2,2070.4,12.69053194]
[1770601932292,1.25236596,2072.2,2070.6,12.69053194]
[1770601932490,1.25236596,2072.2,2070.8,12.69053194]
[1770601932806,0.002,2072.3,2070.8,12.69053194]
[1770601932968,0.002,2072.3,2071.0,12.69053194]
[1770601933409,0.002,2072.3,2071.2,12.69053194]
[1770601934079,0.002,2072.3,2071.1,3.42086049]
[1770601934080,0.002,2072.3,2071.4,12.69053194]
[1770601934475,0.002,2072.3,2071.6,12.69053194]
[1770601934677,0.002,2072.3,2071.7,12.69253194]
[1770601934885,0.002,2072.3,2071.7,12.69053194]
[1770601935089,0.002,2072.3,2071.8,12.92454141]
[1770601935403,0.002,2072.5,2071.8,12.92254141]
[1770601935609,0.04586049,2072.4,2071.3,12.92254141]
[1770601936197,0.04586049,2072.3,2071.3,12.92254141]
[1770601936399,1.20644725,2072.2,2070.8,12.63547086]
[1770601936762,0.04586049,2071.4,2070.5,0.001]
[1770601936875,0.04586049,2071.1,2070.5,0.001]
[1770601937609,0.04586049,2071.5,2070.5,0.001]
[1770601937794,0.14826049,2072.0,2070.5,0.001]
[1770601937982,0.04586049,2071.7,2070.5,0.001]
[1770601938304,0.1024,2072.0,2070.5,12.63647086]
[1770601938485,0.04786049,2072.5,2070.8,12.63547086]
[1770601939222,0.002,2072.5,2070.9,12.68133135]
[1770601939708,0.002,2072.5,2071.1,12.63547086]
[1770601940810,0.002,2072.5,2071.3,12.63547086]
[1770601942800,0.002,2072.5,2071.5,12.63547086]
[1770601943892,0.04586049,2072.4,2071.5,12.63547086]
[1770601944103,0.002,2072.5,2071.5,12.63547086]
[1770601944881,0.04586049,2072.4,2070.9,12.63547086]
[1770601945112,0.04586049,2072.1,2070.9,12.63547086]
[1770601945315,0.04586049,2072.4,2070.9,12.63547086]
[1770601945608,0.1044,2072.5,2071.2,12.63547086]
[1770601945609,0.002,2072.5,2071.2,12.63547086]
[1770601945985,0.04586049,2072.4,2070.8,3.373]
[1770601946418,0.002,2072.5,2070.9,12.63547086]
[1770601946720,0.002,2072.5,2071.1,12.68133135]
[1770601946886,0.002,2072.5,2071.1,13.88837933]
[1770601947089,0.002,2072.5,2071.1,12.63547086]
[1770601947311,0.002,2072.5,2071.3,12.63547086]
[1770601948113,0.002,2072.3,2071.3,12.63647086]
[1770601949188,0.002,2072.3,2071.3,0.001]
[1770601949420,0.04586049,2072.2,2071.3,0.001]
[1770601949718,0.04586049,2072.2,2071.0,0.001]
[1770601950186,0.1024,2072.0,2071.0,0.001]
[1770601951206,1.30899774,2072.0,2071.0,0.001]
[1770601951399,4.57952985,2072.1,2071.0,0.001]
[1770601951888,0.002,2072.3,2071.3,12.63547086]
[1770601952087,0.002,2072.3,2071.6,12.63547086]
[1770601952589,0.002,2072.9,2071.2,0.04586049]
[1770601952590,0.002,2072.9,2071.7,12.68133135]
[1770601953185,0.002,2072.9,2071.9,12.63547086]
[1770601953525,0.002,2072.9,2071.9,16.00847086]
[1770601954693,0.002,2072.9,2072.0,12.63547086]
[1770601955712,0.002,2072.9,2071.5,13.8423217]
[1770601956096,0.002,2072.9,2071.7,12.63547086]
[1770601958023,0.04586049,2072.7,2071.4,3.373]
[1770601958209,0.1044,2072.9,2071.4,3.373]
[1770601958408,0.04586049,2072.7,2071.4,3.373]
[1770601959219,1.20621441,2072.6,2071.4,3.373]
[1770601959399,1.20620149,2072.7,2071.4,16.00847086]
[1770601960493,1.25206198,2072.7,2071.4,16.00847086]
[1770601961523,0.002,2072.5,2071.4,16.00847086]
[1770601966118,0.002,2072.5,2071.3,0.001]